bitfinex-derivatives/quotes_ETHF0:USTF0_20250321
["timestamp","ask_amount","ask_price","bid_price","bid_amount"]
[1742577344544,5.02146,1964.2,1964.1,3.09956]
[1742577345544,5.02146,1964.2,1964.1,2.0808]
[1742577345739,5.02146,1964.2,1964.1,1.4227]
[1742577348046,1.01876,1964.1,1964.0,3.21543845]
[1742577348254,2.32206,1964.1,1964.0,4.52393845]
[1742577348949,1.3033,1964.1,1964.0,5.54274845]
[1742577349248,2.32206,1964.1,1964.0,5.54274845]
[1742577350154,2.32206,1964.1,1964.0,4.52393845]
[1742577350654,2.32206,1964.1,1964.0,5.54274845]
[1742577351046,1.3033,1964.1,1964.0,5.54274845]
[1742577351246,1.01876,1964.1,1964.0,5.54274845]
[1742577351854,2.41026,1964.1,1964.0,5.54274845]
[1742577352455,1.01876,1964.1,1964.0,5.54274845]
[1742577353249,1.02636509,1964.3,1964.2,1.01871]
[1742577353448,3.36163845,1964.3,1964.2,4.22651]
[1742577353948,3.36163845,1964.3,1964.2,6.26701]
[1742577354249,4.38029845,1964.3,1964.2,6.26701]
[1742577354849,3.36163845,1964.3,1964.2,6.26701]
[1742577355246,4.38029845,1964.3,1964.2,6.26701]
[1742577355645,0.00763845,1964.3,1964.2,6.26701]
[1742577356044,1.02629845,1964.3,1964.2,6.26701]
[1742577356355,2.38449845,1964.3,1964.2,6.26701]
[1742577358459,2.38449845,1964.3,1964.2,4.5823]
[1742577358649,3.07529845,1964.3,1964.2,1.3745]
[1742577358851,1.01876,1964.1,1964.0,1.02640845]
[1742577359055,4.37176,1964.1,1964.0,1.02640845]
[1742577359557,4.37176,1964.1,1964.0,0.00763845]
[1742577360059,5.72206,1964.1,1964.0,1.32813845]
[1742577360760,5.72206,1964.1,1964.0,0.00763845]
[1742577361352,4.7033,1964.1,1964.0,4.23424845]
[1742577361557,5.72206,1964.1,1964.0,5.55474845]
[1742577361855,5.72206,1964.1,1964.0,4.53593845]
[1742577362850,5.72206,1964.1,1964.0,5.55474845]
[1742577363256,5.72206,1964.1,1964.0,4.53593845]
[1742577363455,5.72206,1964.1,1964.0,5.55474845]
[1742577363658,5.72206,1964.1,1964.0,4.53593845]
[1742577363959,1.01887,1963.9,1963.8,3.2078]
[1742577364157,4.37187,1963.9,1963.8,3.2078]
[1742577364555,6.37727,1963.9,1963.8,3.2078]
[1742577366255,6.37727,1963.9,1963.8,4.5509]
[1742577367554,6.37727,1963.9,1963.8,3.2078]
[1742577368557,6.37727,1963.9,1963.8,4.5509]
[1742577369858,5.67957,1963.9,1963.8,5.56982]
[1742577370763,3.20780664,1964.2,1963.9,1.01887]
[1742577370764,6.64e-06,1964.2,1963.9,1.01887]
[1742577370963,5.75016,1964.1,1964.0,4.22661]
[1742577371154,4.37176,1964.1,1964.0,5.54411]
[1742577371758,1.01876,1964.1,1964.0,5.54411]
[1742577372063,2.39716,1964.2,1964.1,1.01876]
[1742577372257,5.75016,1964.2,1964.1,2.42166]
[1742577372655,1.72163845,1964.3,1964.1,1.4029]
[1742577372865,5.68066,1964.2,1964.1,1.01875]
[1742577373163,5.68066,1964.2,1964.1,1.72025]
[1742577375253,1.02633845,1964.3,1964.2,1.01871]
[1742577375458,4.37929845,1964.3,1964.2,4.22651]
[1742577377261,3.36063845,1964.3,1964.2,4.22651]
[1742577377465,0.00763845,1964.3,1964.2,4.22651]
[1742577378068,1.02629845,1964.3,1964.2,4.22651]
[1742577378368,1.01881,1964.1,1964.0,4.22656]
[1742577378566,4.37181,1964.1,1964.0,1.01876]
[1742577379070,5.73931,1964.1,1964.0,1.01876]
[1742577379466,1.01887,1964.0,1963.9,1.01883]
[1742577379663,2.38637,1964.0,1963.9,1.01883]
[1742577380363,1.3675,1964.0,1963.9,1.01883]
[1742577380563,3.353,1964.1,1964.0,1.01881]
[1742577380564,4.37181,1964.1,1964.0,1.01881]
[1742577380764,5.73931,1964.1,1964.0,1.01881]
[1742577381664,5.73931,1964.1,1964.0,4.22661]
[1742577381860,3.353,1964.1,1964.0,4.22661]
[1742577382064,0.70973845,1964.3,1964.1,1.01871]
[1742577382065,0.00763845,1964.3,1964.1,1.01871]
[1742577382268,1.37073845,1964.3,1964.2,3.2078]
[1742577382470,5.74239845,1964.3,1964.2,4.22651]
[1742577383172,6.38769845,1964.3,1964.2,4.22651]
[1742577384773,6.38769845,1964.3,1964.2,3.2078]
[1742577385377,6.38769845,1964.3,1964.2,4.22651]
[1742577386875,1.37073845,1964.3,1964.2,4.22651]
[1742577387175,3.35963845,1964.3,1964.2,4.22651]
[1742577387767,0.00763845,1964.3,1964.2,4.22651]
[1742577388771,0.00763845,1964.3,1964.2,6.72651]
[1742577388974,0.00763845,1964.3,1964.2,4.22651]
[1742577389167,0.00763845,1964.3,1964.2,6.72651]
[1742577389366,1.01846,1964.7,1964.6,1.01845]
[1742577389567,4.37046,1964.7,1964.6,4.22625]
[1742577390071,5.68486,1964.7,1964.6,4.22625]
[1742577390272,1.01823,1965.2,1965.1,1.01821]
[1742577390472,4.75079082,1965.2,1965.0,0.00763845]
[1742577390667,1.01824,1965.1,1965.0,0.00763845]
[1742577390868,2.42684,1965.1,1965.0,0.00763845]
[1742577391678,2.42684,1965.1,1965.0,1.02593845]
[1742577391875,5.77884,1965.1,1965.0,1.02593845]
[1742577392280,5.77884,1965.1,1965.0,0.00763845]
[1742577393165,5.77884,1965.1,1965.0,0.70663845]
[1742577393982,5.77884,1965.1,1965.0,2.12913845]
[1742577394166,8.16783511,1965.3,1965.2,1.01819]
[1742577394374,10.50165511,1965.3,1965.1,2.1215]
[1742577394679,10.50165511,1965.3,1965.2,1.4225]
[1742577394680,11.51984511,1965.3,1965.2,1.4225]
[1742577394882,1.01824,1965.1,1965.0,3.21543845]
[1742577395184,4.37024,1965.1,1965.0,0.00763845]
[1742577396883,4.37024,1965.1,1965.0,1.35263845]
[1742577397778,4.37024,1965.1,1964.6,2.54626]
[1742577397779,6.5598,1965.1,1964.6,3.2078]
[1742577397979,2.54597,1964.9,1964.5,2.36352]
[1742577398180,1.0185,1964.6,1964.5,2.36352]
[1742577398382,4.3695,1964.6,1964.5,1.01852]
[1742577398577,1.01855,1964.5,1964.4,4.90507]
[1742577398884,1.67335,1964.5,1964.4,3.2078]
[1742577399075,1.67335,1964.5,1964.4,4.22641]
[1742577399277,1.01855,1964.5,1964.4,4.22641]
[1742577399476,4.36955,1964.6,1964.5,1.01855]
[1742577399676,4.36955,1964.6,1964.5,1.69675]
[1742577401278,3.351,1964.6,1964.5,1.69675]
[1742577401478,3.351,1964.6,1964.5,2.38365]
[1742577401682,3.351,1964.7,1964.6,1.0185]
[1742577401888,3.351,1964.7,1964.6,4.2263]
[1742577402085,0.6687,1964.9,1964.6,4.2263]
[1742577402086,4.36939,1964.9,1964.8,1.0184]
[1742577402295,4.36939,1964.9,1964.8,4.2262]
[1742577402480,1.01839,1964.9,1964.8,4.2262]
[1742577402979,4.36939,1964.9,1964.8,4.2262]
[1742577403382,1.01839,1964.9,1964.8,4.2262]
[1742577403690,4.36939,1964.9,1964.8,4.2262]
[1742577403988,3.351,1964.9,1964.8,4.2262]
[1742577405391,4.36935,1964.9,1964.8,4.2262]
[1742577405691,3.351,1964.9,1964.8,4.2262]
[1742577406687,4.36935,1964.9,1964.8,4.2262]
[1742577408289,1.0184,1964.8,1964.7,1.01841]
[1742577408494,2.389,1964.8,1964.7,1.01841]
[1742577410797,4.36939,1964.9,1964.8,1.0184]
[1742577411296,3.351,1964.9,1964.8,4.2262]
[1742577411793,4.36935,1964.9,1964.8,4.2262]
[1742577411996,3.351,1964.9,1964.8,45.0262]
[1742577412190,1.01834,1965.0,1964.9,1.01835]
[1742577412396,4.36834,1965.0,1964.9,3.01625]
[1742577413092,4.3683,1965.0,1964.9,3.01625]
[1742577413296,3.35,1965.0,1964.9,3.65915]
[1742577413491,4.3683,1965.0,1964.9,3.65915]
[1742577413687,3.35,1965.0,1964.9,3.65915]
[1742577413999,4.3683,1965.0,1964.9,3.65915]
[1742577414302,5.731,1965.0,1964.9,3.65915]
[1742577414796,4.7127,1965.0,1964.9,3.65915]
[1742577415299,3.35,1965.0,1964.9,3.65915]
[1742577415696,4.6623,1965.1,1965.0,1.0183]
[1742577415896,5.68054,1965.1,1965.0,5.5314]
[1742577417203,3.35,1965.1,1965.0,5.5314]
[1742577417504,4.36824,1965.1,1965.0,5.5314]
[1742577417799,3.35,1965.1,1965.0,5.5314]
[1742577418403,4.6643,1965.1,1965.0,5.5314]
[1742577418895,0.00763845,1965.3,1965.0,4.5131]
[1742577419091,5.69007845,1965.3,1965.2,4.22599]
[1742577420506,5.69007845,1965.3,1965.2,1.01819]
[1742577420705,1.01819,1965.2,1965.1,2.43991]
[1742577420894,2.95159,1965.2,1965.1,2.43991]
[1742577421306,1.0183,1965.0,1964.9,1.01833]
[1742577421602,1.01845,1964.7,1964.6,1.01848]
[1742577421803,1.0185,1964.6,1964.5,2.37954]
[1742577422101,3.6326,1964.6,1964.5,1.361]
[1742577422406,3.6326,1964.6,1964.5,2.37955]
[1742577423201,3.6326,1964.6,1964.5,1.361]
[1742577423598,3.6326,1964.6,1964.5,2.37955]
[1742577425404,3.6326,1964.6,1964.5,1.361]
[1742577425608,3.6326,1964.6,1964.5,2.37955]
[1742577425804,3.6326,1964.6,1964.5,1.361]
[1742577426205,1.01855,1964.5,1964.4,44.0078]
[1742577426510,5.70635,1964.5,1964.4,45.02641]
[1742577426804,5.70635,1964.5,1964.4,45.2968]
[1742577427006,5.70635,1964.5,1964.4,5.51541]
[1742577427305,5.70635,1964.5,1964.4,4.4968]
[1742577427812,5.70635,1964.5,1964.4,5.51541]
[1742577430011,5.70635,1964.5,1964.4,4.4968]
[1742577430208,1.01866,1964.3,1964.2,1.01867]
[1742577430407,1.01871,1964.2,1964.1,5.63691]
[1742577430710,3.03841,1964.2,1964.1,4.22651]
[1742577431510,3.74591,1964.2,1964.1,4.22651]
[1742577432812,1.01878,1964.1,1964.0,1.01881]
[1742577433110,5.71768,1964.1,1964.0,1.01881]
[1742577433608,4.6989,1964.1,1964.0,1.01881]
[1742577434202,1.3489,1964.1,1964.0,1.01881]
[1742577434408,4.37634845,1964.2,1964.1,1.01876]
[1742577434611,4.37634845,1964.2,1964.1,4.22656]
[1742577435504,5.72524845,1964.2,1964.1,4.22656]
[1742577438410,5.72524845,1964.2,1964.1,3.2078]
[1742577438710,5.72524845,1964.2,1964.1,4.22656]
[1742577439711,1.01876,1964.1,1964.0,1.01877]
[1742577439905,3.03546,1964.1,1964.0,4.22657]
[1742577440213,1.01887,1963.9,1963.8,1.01889]
[1742577440415,4.36887,1963.9,1963.8,1.72819]
[1742577440713,4.36887,1963.9,1963.8,0.7093]
[1742577441022,1.01892,1963.8,1963.7,44.0078]
[1742577441214,3.03562,1963.8,1963.7,3.2078]
[1742577441614,1.01902,1963.6,1963.5,4.22684]
[1742577441909,4.36902,1963.6,1963.5,4.22684]
[1742577442112,4.36902,1963.6,1963.5,3.2078]
[1742577442410,5.05912,1963.6,1963.5,5.61507]
[1742577442614,5.05912,1963.6,1963.5,4.596]
[1742577443210,5.05912,1963.6,1963.5,5.61507]
[1742577444313,5.05912,1963.6,1963.5,4.596]
[1742577445014,5.05912,1963.6,1963.5,5.61507]
[1742577445613,3.35,1963.6,1963.5,5.61507]
[1742577446716,3.35,1963.6,1963.5,46.41507]
[1742577447720,4.36902,1963.6,1963.5,46.41507]
[1742577448423,3.35,1963.6,1963.5,46.41507]
[1742577448620,4.36902,1963.6,1963.5,46.41507]
[1742577449922,3.35,1963.6,1963.5,46.41507]
[1742577450219,4.36902,1963.6,1963.5,46.41507]
[1742577450917,3.35,1963.6,1963.5,46.41507]
[1742577451723,3.351,1963.7,1963.6,1.01902]
[1742577452022,3.351,1963.7,1963.6,2.42082]
[1742577452713,4.36997,1963.7,1963.6,2.42082]
[1742577452909,3.351,1963.7,1963.6,2.42082]
[1742577454022,5.7282,1963.9,1963.8,1.01892]
[1742577454324,5.7282,1963.9,1963.8,4.22672]
[1742577454819,5.7282,1963.9,1963.8,5.62912]
[1742577457022,5.7282,1963.9,1963.8,2.42132]
[1742577457622,5.7282,1963.9,1963.8,1.4024]
[1742577457824,1.01892,1963.8,1963.7,1.01893]
[1742577458123,2.37902,1963.8,1963.7,1.01893]
[1742577459327,2.37902,1963.8,1963.7,2.34693]
[1742577461929,1.01897,1963.7,1963.6,3.2078]
[1742577462230,7.09087,1963.7,1963.6,3.2078]
[1742577463127,1.01902,1963.6,1963.5,2.44187]
[1742577463324,2.37642,1963.6,1963.5,2.44187]
[1742577463533,2.37642,1963.6,1963.5,5.64967]
[1742577464130,2.37642,1963.6,1963.5,4.6306]
[1742577464832,2.37642,1963.6,1963.5,1.4228]
[1742577465030,2.37642,1963.6,1963.5,3.2078]
[1742577465530,2.37642,1963.6,1963.2,1.01919]
[1742577465531,2.54772,1963.5,1963.2,1.01919]
[1742577465727,1.01918,1963.3,1963.2,2.42949]
[1742577466130,3.10648,1963.3,1963.2,2.42949]
[1742577467129,3.10648,1963.3,1963.2,1.4103]
[1742577467330,1.01923,1963.2,1963.1,4.22706]
[1742577467531,5.65863,1963.2,1963.1,4.22706]
[1742577468234,5.65863,1963.2,1963.1,4.22708]
[1742577468628,3.35,1963.2,1963.1,4.22708]
[1742577469530,3.35,1963.4,1963.3,1.01918]
[1742577469730,3.35,1963.4,1963.3,4.22698]
[1742577470236,3.35,1963.4,1963.3,6.29198]
[1742577470425,0.6713,1963.8,1963.5,1.01907]
[1742577470632,5.6698,1963.7,1963.6,6.33877]
[1742577472128,4.369,1963.7,1963.6,6.33877]
[1742577472934,5.7266,1963.7,1963.6,6.33877]
[1742577473725,5.7266,1963.7,1963.6,2.112]
[1742577473926,6.3971,1963.7,1963.6,3.13102]
[1742577474134,6.3971,1963.7,1963.6,1.4093]
[1742577474536,6.3971,1963.7,1963.6,2.42832]
[1742577478137,6.3971,1963.7,1963.6,5.63612]
[1742577478336,5.7266,1963.7,1963.6,5.63612]
[1742577478554,4.7076,1963.7,1963.6,5.63612]
[1742577478749,3.35,1963.7,1963.6,5.63612]
[1742577478955,4.36897,1963.7,1963.6,5.63612]
[1742577479842,5.77333,1963.8,1963.7,1.01897]
[1742577480146,2.42333,1963.8,1963.7,3.75167]
[1742577480449,1.02638845,1964.2,1963.7,2.7327]
[1742577480658,2.43078845,1964.2,1964.1,1.01876]
[1742577480852,5.78078845,1964.2,1964.1,1.01876]
[1742577481051,5.78078845,1964.2,1964.1,2.36796]
[1742577483054,5.78078845,1964.2,1964.1,1.3492]
[1742577483253,5.78078845,1964.2,1964.1,2.36796]
[1742577483452,5.78078845,1964.2,1964.1,1.3492]
[1742577483853,5.78078845,1964.2,1964.1,2.36796]
[1742577485052,5.78078845,1964.2,1964.1,1.3492]
[1742577485553,2.54692,1964.1,1963.8,4.90357]
[1742577485755,1.01887,1963.9,1963.8,3.2078]
[1742577485953,1.01887,1963.9,1963.8,4.22672]
[1742577486154,1.01887,1963.9,1963.8,1.01892]
[1742577486155,3.06257,1963.9,1963.8,1.01892]
[1742577486750,1.01892,1963.8,1963.7,2.36352]
[1742577487056,5.75652,1963.8,1963.7,2.36352]
[1742577488060,3.349,1963.8,1963.7,2.36352]
[1742577489461,4.36792,1963.8,1963.7,2.36352]
[1742577490062,4.36792,1963.8,1963.7,1.3446]
[1742577490466,5.70692,1963.8,1963.7,1.3446]
[1742577492663,1.01907,1963.6,1963.5,1.01904]
[1742577492864,4.36807,1963.6,1963.5,1.01904]
[1742577494068,5.77017,1963.6,1963.5,2.34844]
[1742577494766,4.7511,1963.6,1963.5,2.34844]
[1742577494966,5.77012,1963.6,1963.5,2.34844]
[1742577496270,5.77012,1963.6,1963.5,2.34847]
[1742577496568,5.77012,1963.6,1963.5,1.3294]
[1742577496963,1.01907,1963.5,1963.4,3.2078]
[1742577497173,3.14707,1963.5,1963.4,4.4912]
[1742577497361,3.14707,1963.5,1963.4,3.2078]
[1742577497561,1.01918,1963.3,1963.2,1.2834]
[1742577497769,4.36818,1963.3,1963.2,2.30263]
[1742577498473,5.78798,1963.3,1963.2,2.30263]
[1742577499069,4.36818,1963.3,1963.2,2.30263]
[1742577500470,3.349,1963.3,1963.2,2.30263]
[1742577500968,4.7688,1963.4,1963.3,1.01918]
[1742577501170,5.78793,1963.4,1963.3,6.96108]
[1742577503370,5.78793,1963.4,1963.3,6.30378]
[1742577504569,0.7082,1963.5,1963.4,1.01913]
[1742577504871,3.349,1963.5,1963.4,2.32073]
[1742577505268,4.36803,1963.6,1963.5,1.01902]
[1742577505464,3.349,1963.6,1963.5,6.21542]
[1742577505668,0.6751,1964.0,1963.5,5.1964]
[1742577505869,3.349,1963.9,1963.8,1.01892]
[1742577506076,3.349,1963.9,1963.8,4.22672]
[1742577507470,4.36787,1963.9,1963.8,4.22672]
[1742577507673,4.7545,1963.9,1963.8,4.22672]
[1742577508068,4.7545,1963.9,1963.8,3.2078]
[1742577508069,5.77337,1963.9,1963.8,3.2078]
[1742577508268,5.77337,1963.9,1963.8,4.22672]
[1742577508477,5.77337,1963.9,1963.8,3.2078]
[1742577509172,5.77337,1963.9,1963.8,4.5443]
[1742577509878,5.77337,1963.9,1963.8,5.56322]
[1742577514485,1.01887,1963.9,1963.8,1.01889]
[1742577514679,4.36687,1963.9,1963.8,1.01889]
[1742577515580,1.01892,1963.8,1963.7,4.22674]
[1742577515882,2.43342,1963.8,1963.7,4.22674]
[1742577517780,2.43342,1963.8,1963.7,3.2078]
[1742577517981,2.43342,1963.8,1963.7,4.22677]
[1742577518790,1.01892,1963.8,1963.7,4.22677]
[1742577518988,5.73351,1963.9,1963.8,1.01892]
[1742577519188,0.6462,1964.1,1964.0,1.01881]
[1742577519390,6.37958,1964.1,1964.0,3.2078]
[1742577520190,1.01887,1963.9,1963.8,4.22668]
[1742577520491,4.36687,1963.9,1963.8,4.22668]
[1742577521691,3.348,1963.9,1963.8,4.22668]
[1742577522788,4.36687,1963.9,1963.8,4.22668]
[1742577525189,3.348,1963.9,1963.8,4.22668]
[1742577525391,4.36687,1963.9,1963.8,4.22668]
[1742577525789,3.348,1963.9,1963.8,4.22668]
[1742577526094,4.36687,1963.9,1963.8,4.22668]
[1742577528196,4.36687,1963.9,1963.8,4.22672]
[1742577528496,5.05527,1963.9,1963.8,4.22672]
[1742577536097,5.05527,1963.9,1963.8,3.2078]
[1742577536299,5.05527,1963.9,1963.8,4.22672]
[1742577536496,5.05527,1963.9,1963.8,5.59832]
[1742577539297,1.3284,1964.0,1963.9,1.01887]
[1742577539499,3.347,1964.0,1963.9,3.10547]
[1742577539698,5.3766,1964.1,1964.0,1.01881]
[1742577539902,6.3954,1964.1,1964.0,5.62521]
[1742577540194,1.3834,1964.1,1964.0,5.62521]
[1742577540396,4.36576,1964.1,1964.0,5.62521]
[1742577540791,3.347,1964.1,1964.0,5.62521]
[1742577541189,4.36576,1964.1,1964.0,5.62521]
[1742577542593,4.36576,1964.1,1964.0,4.6064]
[1742577542792,5.01356,1964.1,1964.0,1.3986]
[1742577543001,1.01883,1964.0,1963.8,3.2078]
[1742577543202,0.6892,1964.0,1963.9,2.31127]
[1742577543401,5.05501,1964.0,1963.9,1.2924]
[1742577543702,1.0189,1963.9,1963.7,1.01894]
[1742577544003,3.9948,1963.8,1963.7,1.01894]
[1742577544208,3.9948,1963.8,1963.7,2.31134]
[1742577544402,5.01372,1963.8,1963.7,2.31134]
[1742577544799,3.9948,1963.8,1963.7,2.31134]
[1742577545095,3.347,1963.8,1963.7,2.31134]
[1742577546908,4.36592,1963.8,1963.7,2.31134]
[1742577547505,3.347,1963.8,1963.7,2.31134]
[1742577547910,4.36592,1963.8,1963.7,2.31134]
[1742577549511,4.36592,1963.8,1963.7,1.01894]
[1742577549711,4.36592,1963.8,1963.7,2.39664]
[1742577549919,4.36592,1963.8,1963.7,1.3777]
[1742577550120,1.01897,1963.7,1963.6,1.01897]
[1742577550327,1.01897,1963.7,1963.6,2.39667]
[1742577550513,1.01902,1963.6,1963.5,1.01903]
[1742577550714,5.06262,1963.6,1963.5,1.01903]
[1742577550917,1.01907,1963.5,1963.4,3.2078]
[1742577551120,1.69747,1963.5,1963.4,3.2078]
[1742577552119,1.01913,1963.4,1963.3,1.01915]
[1742577552321,4.36613,1963.4,1963.3,1.01915]
[1742577552514,4.36613,1963.4,1963.3,4.22695]
[1742577556124,1.01918,1963.3,1963.2,2.39689]
[1742577559237,1.69258,1963.3,1963.2,2.39689]
[1742577561631,1.01918,1963.3,1963.2,2.39689]
[1742577562533,2.41978,1963.3,1963.2,2.39689]
[1742577563226,1.01918,1963.3,1963.2,2.39689]
[1742577563426,4.36613,1963.4,1963.3,1.01918]
[1742577563632,3.347,1963.4,1963.3,5.60238]
[1742577564129,4.36613,1963.4,1963.3,5.60238]
[1742577564931,5.78923,1963.4,1963.3,5.60238]
[1742577566032,1.01906,1963.6,1963.5,1.01907]
[1742577566237,4.36606,1963.6,1963.5,4.22687]
[1742577566534,5.78916,1963.6,1963.5,4.22687]
[1742577566732,5.78916,1963.6,1963.5,5.55767]
[1742577568430,5.78916,1963.6,1963.5,4.5386]
[1742577568636,5.78916,1963.6,1963.5,5.55767]
[1742577569324,5.78916,1963.6,1963.5,4.5386]
[1742577570234,5.78916,1963.6,1963.5,5.55767]
[1742577572029,5.78916,1963.6,1963.5,4.5386]
[1742577573339,5.78916,1963.6,1963.5,1.3308]
[1742577574332,1.01913,1963.4,1963.3,4.90735]
[1742577574533,4.36613,1963.4,1963.3,1.69955]
[1742577574728,4.36613,1963.4,1963.3,3.2078]
[1742577574933,1.01918,1963.3,1963.2,1.01922]
[1742577575138,1.01923,1963.2,1963.1,4.90565]
[1742577575333,5.05843,1963.2,1963.1,4.90565]
[1742577575841,6.47663,1963.2,1963.1,4.90565]
[1742577579243,3.347,1963.2,1963.1,4.90565]
[1742577579442,4.36623,1963.2,1963.1,4.90565]
[1742577584246,3.347,1963.2,1963.1,4.90565]
[1742577584438,4.36623,1963.2,1963.1,4.90565]
[1742577584838,3.347,1963.2,1963.1,4.90565]
[1742577586244,5.968,1963.7,1963.1,3.8864]
[1742577586444,1.4001,1963.5,1963.4,1.01913]
[1742577586644,1.4001,1963.5,1963.4,4.22693]
[1742577586645,2.41917,1963.5,1963.4,4.22693]
[1742577587046,2.41917,1963.5,1963.4,4.89923]
[1742577589250,2.41917,1963.5,1963.4,1.01913]
[1742577589445,1.01913,1963.4,1963.3,1.321]
[1742577589650,6.41303,1963.4,1963.3,2.34018]
[1742577590041,7.22857939,1963.4,1963.3,2.34018]
[1742577590242,7.22857939,1963.4,1963.3,1.321]
[1742577590448,7.22857939,1963.4,1963.3,2.34018]
[1742577590651,6.41303,1963.4,1963.3,2.34018]
[1742577592149,7.12023,1963.4,1963.3,2.34018]
[1742577592953,7.12023,1963.4,1963.3,3.00238]
[1742577593152,6.47763,1963.4,1963.3,3.00238]
[1742577601162,6.47763,1963.4,1963.3,1.9832]
[1742577601364,6.47763,1963.4,1963.3,3.00238]
[1742577601566,6.47763,1963.4,1963.3,1.321]
[1742577602065,5.4575,1963.4,1963.3,2.34018]
[1742577602367,5.76943,1963.4,1963.3,3.71108]
[1742577602754,3.345,1963.4,1963.3,3.71108]
[1742577602958,4.36413,1963.4,1963.3,3.71108]
[1742577603566,3.345,1963.4,1963.3,3.71108]
[1742577603869,4.36413,1963.4,1963.3,3.71108]
[1742577604270,3.345,1963.4,1963.3,3.71108]
[1742577604465,0.6599,1963.8,1963.6,1.01897]
[1742577604770,1.01902,1963.6,1963.5,4.22683]
[1742577604963,1.83472465,1963.6,1963.5,4.22683]
[1742577605163,3.12332465,1963.6,1963.5,4.22683]
[1742577606874,3.12332465,1963.6,1963.5,4.22687]
[1742577607386,4.36402,1963.6,1963.5,4.22687]
[1742577607983,2.0021,1963.7,1963.5,4.22687]
[1742577608287,1.01901,1963.7,1963.6,1.01902]
[1742577608585,1.01892,1963.8,1963.7,1.01897]
[1742577608784,4.36392,1963.8,1963.7,4.22677]
[1742577608976,3.345,1963.8,1963.7,4.22677]
[1742577609978,4.36392,1963.8,1963.7,3.2078]
[1742577610281,5.67052,1963.8,1963.7,4.22677]
[1742577611286,5.67052,1963.8,1963.7,3.2078]
[1742577611682,5.67052,1963.8,1963.7,4.22677]
[1742577612085,3.345,1963.8,1963.7,4.22677]
[1742577612282,4.36392,1963.8,1963.7,4.22677]
[1742577612588,3.345,1963.8,1963.7,4.22677]
[1742577613888,1.3066,1963.9,1963.8,1.01892]
[1742577614090,4.36292,1963.9,1963.8,1.01887]
[1742577616391,0.00763845,1964.2,1964.1,1.01876]
[1742577616689,4.37034845,1964.2,1964.1,4.22656]
[1742577619394,1.02634845,1964.2,1964.1,4.22656]
[1742577620686,0.00763845,1964.2,1964.1,4.22656]
[1742577620888,0.6551,1964.6,1964.5,1.01855]
[1742577621086,5.7104,1964.6,1964.5,4.22635]
[1742577621292,2.60886,1964.8,1964.5,3.2078]
[1742577621489,2.60886,1964.8,1964.4,2.54643]
[1742577621490,3.95676,1964.8,1964.7,4.22625]
[1742577621691,5.95286,1964.8,1964.7,4.22625]
[1742577622297,5.31156,1964.8,1964.7,4.22625]
[1742577622499,0.94913,1964.8,1964.7,5.58075]
[1742577624496,0.9185762,1964.8,1964.7,6.28985]
[1742577625791,0.9185762,1964.8,1964.7,8.78985]
[1742577627595,0.9185762,1964.8,1964.7,6.28985]
[1742577634101,0.9185762,1964.8,1964.7,9.63085]
[1742577637005,6.2e-06,1964.8,1964.7,12.13085]
[1742577639400,6.2e-06,1964.8,1964.7,9.63085]
[1742577640405,1.3350062,1964.8,1964.7,9.63085]
[1742577641297,1.3350062,1964.8,1964.7,5.58075]
[1742577647116,6.2e-06,1964.8,1964.7,6.22965]
[1742577647505,6.2e-06,1964.8,1964.7,47.02965]
[1742577650216,6.2e-06,1964.8,1964.7,47.67702378]
[1742577650711,6.2e-06,1964.8,1964.7,53.54902378]
[1742577655512,1.41880465,1965.1,1964.8,3.56435]
[1742577655719,1.3479,1965.3,1965.2,1.01819]
[1742577655916,1.3479,1965.3,1965.2,4.22599]
[1742577656119,1.3479,1965.3,1965.2,45.02599]
[1742577656616,1.3479,1965.3,1965.2,46.32029]
[1742577657517,1.3479,1965.3,1965.2,5.52029]
[1742577658315,0.6882,1965.3,1965.2,5.52029]
[1742577658515,0.00763845,1965.4,1965.3,1.01814]
[1742577658715,0.00763845,1965.4,1965.3,2.30534]
[1742577658912,1.34183845,1965.4,1965.3,2.30534]
[1742577660216,1.34183845,1965.4,1965.3,2.72063516]
[1742577663420,0.00763845,1965.4,1965.3,2.72063516]
[1742577663615,0.00763845,1965.4,1965.3,6.05963516]
[1742577664115,8.45e-06,1965.4,1965.3,6.05963516]
[1742577665716,0.66630845,1965.4,1965.3,6.05963516]
[1742577665925,0.66630845,1965.4,1965.3,5.64434]
[1742577666224,0.66630845,1965.4,1965.3,2.30534]
[1742577666426,1.68439845,1965.4,1965.3,1.01814]
[1742577666723,1.96480845,1965.4,1965.3,1.01814]
[1742577667128,2.98289845,1965.4,1965.3,1.01814]
[1742577668716,1.96480845,1965.4,1965.3,1.01814]
[1742577669122,1.01814,1965.3,1965.2,4.22595]
[1742577669319,3.03994,1965.3,1965.2,4.22595]
[1742577669725,6.37794,1965.3,1965.2,3.2078]
[1742577669924,6.37794,1965.3,1965.2,4.22599]
[1742577670121,6.37794,1965.3,1965.2,3.2078]
[1742577670824,6.37794,1965.3,1965.1,4.22604]
[1742577670825,1.01819,1965.2,1965.1,4.22604]
[1742577671022,1.01819,1965.2,1964.9,1.329]
[1742577671023,1.0183,1965.0,1964.9,3.2078]
[1742577671224,3.338,1965.0,1964.7,4.22621]
[1742577671425,1.0184,1964.8,1964.7,4.22621]
[1742577671628,4.3564,1964.8,1964.7,3.2078]
[1742577671822,1.01845,1964.7,1964.6,1.02611845]
[1742577672136,2.39145,1964.7,1964.6,0.00763845]
[1742577672734,1.0185,1964.6,1964.5,3.2078]